[Event "*** MasterClass Titled Tuesday Blitz"]
[Site "Chess.com"]
[Date "2017.11.07"]
[Round "1"]
[White "pKiLz5Rn9b"]
[Black "pedromartinez91"]
[Result "1-0"]
[WhiteElo "2589"]
[BlackElo "2329"]
[TimeControl "180+2"]
[EndTime "14:14:11 PST"]
[Termination "pKiLz5Rn9b won by resignation"]

1. b3 {[%clk 0:03:00.9]} 1... d5 {[%clk 0:02:55.8]} 2. Bb2 {[%clk 0:03:01.5]}
2... e6 {[%clk 0:02:57.4]} 3. Nf3 {[%clk 0:03:01.8]} 3... Nf6 {[%clk 0:02:58.9]}
4. e3 {[%clk 0:03:00.7]} 4... Be7 {[%clk 0:03:00.4]} 5. d4 {[%clk 0:03:01.3]}
5... O-O {[%clk 0:03:01.6]} 6. c4 {[%clk 0:03:02.8]} 6... b6 {[%clk 0:02:59.4]}
7. cxd5 {[%clk 0:03:02.6]} 7... exd5 {[%clk 0:02:52]} 8. Nc3 {[%clk 0:03:02.9]}
8... Bb7 {[%clk 0:02:51.4]} 9. Bd3 {[%clk 0:03:03.3]} 9... Nbd7 {[%clk
0:02:38.3]} 10. O-O {[%clk 0:03:04]} 10... c5 {[%clk 0:02:34.9]} 11. Rc1 {[%clk
0:03:05.3]} 11... a6 {[%clk 0:02:30.3]} 12. Ne2 {[%clk 0:03:04.5]} 12... Bd6
{[%clk 0:02:26.6]} 13. Ng3 {[%clk 0:03:04.9]} 13... g6 {[%clk 0:02:26.3]} 14.
Qe2 {[%clk 0:03:00.9]} 14... Re8 {[%clk 0:02:25.7]} 15. Rfd1 {[%clk 0:03:01]}
15... Qe7 {[%clk 0:02:20.2]} 16. Re1 {[%clk 0:02:26.8]} 16... Rac8 {[%clk
0:02:11.1]} 17. a4 {[%clk 0:02:20]} 17... a5 {[%clk 0:01:57.2]} 18. Bb5 {[%clk
0:02:18.3]} 18... Bc6 {[%clk 0:01:57.8]} 19. Red1 {[%clk 0:02:10.4]} 19... Bxb5
{[%clk 0:01:47.6]} 20. Qxb5 {[%clk 0:02:09.6]} 20... Bxg3 {[%clk 0:01:29.8]} 21.
hxg3 {[%clk 0:02:09.3]} 21... Qe6 {[%clk 0:01:28.1]} 22. dxc5 {[%clk 0:02:04.3]}
22... Nxc5 {[%clk 0:01:20.5]} 23. Nd4 {[%clk 0:02:00.7]} 23... Qd6 {[%clk
0:01:19.9]} 24. Ne2 {[%clk 0:01:57.9]} 24... Qc6 {[%clk 0:01:05.5]} 25. Qxc6
{[%clk 0:01:47.8]} 25... Rxc6 {[%clk 0:01:07.4]} 26. Nf4 {[%clk 0:01:48.4]}
26... Rd8 {[%clk 0:00:47.9]} 27. f3 {[%clk 0:01:44.6]} 27... g5 {[%clk
0:00:44.1]} 28. Ne2 {[%clk 0:01:41.3]} 28... Re6 {[%clk 0:00:36.5]} 29. Rc3
{[%clk 0:01:41.5]} 29... Rd7 {[%clk 0:00:28.1]} 30. Nd4 {[%clk 0:01:40.9]} 30...
Re8 {[%clk 0:00:29.2]} 31. Nf5 {[%clk 0:01:37.9]} 31... Re6 {[%clk 0:00:27.7]}
32. g4 {[%clk 0:01:36.2]} 32... h5 {[%clk 0:00:28.3]} 33. gxh5 {[%clk 0:01:36]}
33... Nxh5 {[%clk 0:00:29.3]} 34. g4 {[%clk 0:01:37]} 34... Nf6 {[%clk
0:00:29.1]} 35. Kg2 {[%clk 0:01:38.3]} 35... d4 {[%clk 0:00:26.9]} 36. Nxd4
{[%clk 0:01:25.6]} 36... Re8 {[%clk 0:00:25.7]} 37. e4 {[%clk 0:00:46.2]} 37...
Red8 {[%clk 0:00:25.7]} 38. Rc4 {[%clk 0:00:47.1]} 38... Nxb3 {[%clk 0:00:23.4]}
39. Nxb3 {[%clk 0:00:47.7]} 39... Rxd1 {[%clk 0:00:24.6]} 40. Bxf6 {[%clk
0:00:49]} 40... R8d3 {[%clk 0:00:25.1]} 41. Bc3 {[%clk 0:00:37]} 41... Rb1
{[%clk 0:00:22.3]} 42. Nd4 {[%clk 0:00:35.9]} 42... Rc1 {[%clk 0:00:22.5]} 43.
Ne2 {[%clk 0:00:30.7]} 43... Rc2 {[%clk 0:00:22.7]} 44. Kf2 {[%clk 0:00:32]}
44... f6 {[%clk 0:00:19.4]} 45. Rc8+ {[%clk 0:00:32.2]} 45... Kf7 {[%clk
0:00:20.5]} 46. Rc7+ {[%clk 0:00:33.1]} 46... Ke8 {[%clk 0:00:21.5]} 47. Rc6
{[%clk 0:00:33.8]} 47... Kd7 {[%clk 0:00:22.4]} 48. Rc4 {[%clk 0:00:30.2]} 48...
Kd6 {[%clk 0:00:23.4]} 49. Bb4+ {[%clk 0:00:26.7]} 49... axb4 {[%clk 0:00:23.4]}
50. Rxc2 {[%clk 0:00:28.6]} 50... Ra3 {[%clk 0:00:24.1]} 51. Rb2 {[%clk
0:00:28.6]} 51... Kc5 {[%clk 0:00:24.1]} 52. Rc2+ {[%clk 0:00:26.4]} 52... Kd6
{[%clk 0:00:24.9]} 53. Nd4 {[%clk 0:00:27]} 53... Rxa4 {[%clk 0:00:24.5]} 54.
Rc6+ {[%clk 0:00:23]} 54... Ke5 {[%clk 0:00:24.3]} 55. Ne2 {[%clk 0:00:20.7]}
55... b5 {[%clk 0:00:21.6]} 56. Rc5+ {[%clk 0:00:21]} 56... Ke6 {[%clk
0:00:20.8]} 57. Rxb5 {[%clk 0:00:22.9]} 57... Kd6 {[%clk 0:00:21.4]} 58. Nd4
{[%clk 0:00:23.7]} 58... Ra2+ {[%clk 0:00:19.4]} 59. Kg3 {[%clk 0:00:24.3]}
59... Ra4 {[%clk 0:00:19]} 60. Nc2 {[%clk 0:00:25.3]} 60... Ra2 {[%clk
0:00:14.1]} 61. Nxb4 {[%clk 0:00:25.7]} 61... Rb2 {[%clk 0:00:15.3]} 62. Rb6+
{[%clk 0:00:26.8]} 62... Kc5 {[%clk 0:00:12.9]} 63. Nd3+ {[%clk 0:00:27.4]}
63... Kxb6 {[%clk 0:00:14.3]} 64. Nxb2 {[%clk 0:00:29.3]} 64... Kc5 {[%clk
0:00:16.2]} 65. Kf2 {[%clk 0:00:28.6]} 65... Kd4 {[%clk 0:00:18.1]} 66. Ke2
{[%clk 0:00:29.7]} 66... Ke5 {[%clk 0:00:19]} 67. Nd3+ {[%clk 0:00:30.6]} 67...
Kd4 {[%clk 0:00:19.9]} 68. Kd2 {[%clk 0:00:32]} 68... Kc4 {[%clk 0:00:21.6]} 69.
Ke3 {[%clk 0:00:33.4]} 69... Kc3 {[%clk 0:00:22.8]} 70. e5 {[%clk 0:00:34.7]}
70... fxe5 {[%clk 0:00:24.7]} 71. Nxe5 {[%clk 0:00:36.6]} 71... Kc2 {[%clk
0:00:24.4]} 72. Nf7 {[%clk 0:00:37.7]} 72... Kd1 {[%clk 0:00:26.3]} 73. Nxg5
{[%clk 0:00:37.9]} 73... Ke1 {[%clk 0:00:28.2]} 74. Ne4 {[%clk 0:00:39.8]} 74...
Kf1 {[%clk 0:00:30.1]} 75. g5 {[%clk 0:00:41.6]} 1-0

[Event "*** MasterClass Titled Tuesday Blitz"]
[Site "Chess.com"]
[Date "2017.11.07"]
[Round "1"]
[White "Tarlev_Konstantin"]
[Black "Ilja_Semjonovs"]
[Result "1-0"]
[WhiteElo "2623"]
[BlackElo "2351"]
[TimeControl "180+2"]
[EndTime "14:14:40 PST"]
[Termination "Tarlev_Konstantin won by resignation"]

1. Nf3 {[%clk 0:03:01.9]} 1... Nf6 {[%clk 0:03:00.6]} 2. c4 {[%clk 0:03:02.5]}
2... e6 {[%clk 0:03:01.5]} 3. b3 {[%clk 0:03:03.2]} 3... d5 {[%clk 0:03:01.2]}
4. Bb2 {[%clk 0:03:04.7]} 4... Be7 {[%clk 0:03:01.9]} 5. e3 {[%clk 0:03:06]}
5... O-O {[%clk 0:03:02.3]} 6. Be2 {[%clk 0:03:07.6]} 6... c6 {[%clk 0:03:03.6]}
7. O-O {[%clk 0:03:08.7]} 7... h6 {[%clk 0:03:00.4]} 8. Nc3 {[%clk 0:03:06.8]}
8... Nbd7 {[%clk 0:03:01.5]} 9. d4 {[%clk 0:03:04.4]} 9... a6 {[%clk 0:02:59.4]}
10. Qc2 {[%clk 0:03:04.9]} 10... b5 {[%clk 0:02:48.6]} 11. e4 {[%clk 0:03:06.1]}
11... b4 {[%clk 0:02:46.9]} 12. e5 {[%clk 0:02:46.4]} 12... bxc3 {[%clk
0:02:48.8]} 13. exf6 {[%clk 0:02:44.3]} 13... cxb2 {[%clk 0:02:41.8]} 14. fxe7
{[%clk 0:02:45.3]} 14... Qxe7 {[%clk 0:02:40.8]} 15. Qxb2 {[%clk 0:02:45.8]}
15... dxc4 {[%clk 0:02:37.2]} 16. Bxc4 {[%clk 0:02:44]} 16... Bb7 {[%clk
0:02:34.9]} 17. Rfe1 {[%clk 0:02:43.2]} 17... c5 {[%clk 0:02:30.2]} 18. d5
{[%clk 0:02:33.6]} 18... Nb6 {[%clk 0:02:24.6]} 19. dxe6 {[%clk 0:01:37.1]}
19... Nxc4 {[%clk 0:02:20.1]} 20. bxc4 {[%clk 0:01:38.3]} 20... Bxf3 {[%clk
0:02:18.8]} 21. gxf3 {[%clk 0:01:40.2]} 21... fxe6 {[%clk 0:02:16.1]} 22. Re3
{[%clk 0:01:41.6]} 22... Rad8 {[%clk 0:02:02.4]} 23. Qe5 {[%clk 0:01:39.6]}
23... Rf6 {[%clk 0:01:38]} 24. Rae1 {[%clk 0:01:23.7]} 24... Rg6+ {[%clk
0:01:27.1]} 25. Kh1 {[%clk 0:01:24.7]} 25... Qh4 {[%clk 0:01:15.5]} 26. Qe4
{[%clk 0:01:14.6]} 26... Qxe4 {[%clk 0:01:06.8]} 27. Rxe4 {[%clk 0:01:15.7]}
27... Kf7 {[%clk 0:01:00]} 28. h3 {[%clk 0:01:09.2]} 28... Ke7 {[%clk
0:00:52.1]} 29. Kh2 {[%clk 0:01:08]} 29... Rd3 {[%clk 0:00:44.6]} 30. R1e3
{[%clk 0:01:07.2]} 30... Rd2 {[%clk 0:00:39.2]} 31. Re2 {[%clk 0:01:08.4]} 31...
Rd3 {[%clk 0:00:40]} 32. R4e3 {[%clk 0:01:04.1]} 32... Rd4 {[%clk 0:00:30.8]}
33. Re4 {[%clk 0:00:51.4]} 33... Rd3 {[%clk 0:00:31.6]} 34. R4e3 {[%clk
0:00:45.9]} 34... Rd4 {[%clk 0:00:32.6]} 35. Ra3 {[%clk 0:00:47]} 35... Rxc4
{[%clk 0:00:29.1]} 36. Rxa6 {[%clk 0:00:48.6]} 36... Rc1 {[%clk 0:00:21.8]} 37.
Ra4 {[%clk 0:00:49.5]} 37... Rcg1 {[%clk 0:00:19.2]} 38. Rg4 {[%clk 0:00:50.3]}
38... R6xg4 {[%clk 0:00:16.8]} 39. fxg4 {[%clk 0:00:51.1]} 39... Ra1 {[%clk
0:00:15.5]} 40. Rd2 {[%clk 0:00:48.4]} 40... c4 {[%clk 0:00:14.4]} 41. Rc2
{[%clk 0:00:48.9]} 41... e5 {[%clk 0:00:13.6]} 42. Kg3 {[%clk 0:00:49.1]} 42...
Ke6 {[%clk 0:00:14.6]} 43. Rxc4 {[%clk 0:00:50]} 43... Rxa2 {[%clk 0:00:15.3]}
44. Rc7 {[%clk 0:00:51.5]} 44... Ra3+ {[%clk 0:00:14.9]} 45. Kg2 {[%clk
0:00:40.1]} 45... Kf6 {[%clk 0:00:13.2]} 46. Rc6+ {[%clk 0:00:41.1]} 46... Ke7
{[%clk 0:00:12.7]} 47. h4 {[%clk 0:00:41.6]} 47... Ra4 {[%clk 0:00:13]} 48. Kg3
{[%clk 0:00:42.2]} 48... Rf4 {[%clk 0:00:13.5]} 49. Rc7+ {[%clk 0:00:41.1]}
49... Kf8 {[%clk 0:00:11.2]} 50. Rc5 {[%clk 0:00:42.2]} 50... Re4 {[%clk
0:00:10.5]} 51. Kf3 {[%clk 0:00:40.2]} 51... Re1 {[%clk 0:00:11.4]} 52. Rc7
{[%clk 0:00:38.6]} 52... Kg8 {[%clk 0:00:09.4]} 53. Re7 {[%clk 0:00:36.9]} 53...
Rh1 {[%clk 0:00:04.6]} 54. h5 {[%clk 0:00:36.6]} 54... Ra1 {[%clk 0:00:05.4]}
55. Rxe5 {[%clk 0:00:36.8]} 55... Ra3+ {[%clk 0:00:07.3]} 56. Re3 {[%clk
0:00:37.6]} 56... Ra7 {[%clk 0:00:09.2]} 57. Kf4 {[%clk 0:00:38.6]} 57... Kf7
{[%clk 0:00:10.3]} 58. f3 {[%clk 0:00:39.2]} 58... Ra4+ {[%clk 0:00:11.3]} 59.
Re4 {[%clk 0:00:40.4]} 59... Ra7 {[%clk 0:00:13.2]} 60. Rb4 {[%clk 0:00:41.4]}
60... Rc7 {[%clk 0:00:14]} 61. Rb5 {[%clk 0:00:42.2]} 61... Rd7 {[%clk
0:00:15.3]} 62. Kf5 {[%clk 0:00:43.2]} 62... Rc7 {[%clk 0:00:16.1]} 63. Rd5
{[%clk 0:00:42.9]} 63... Ra7 {[%clk 0:00:16.6]} 64. Rc5 {[%clk 0:00:34]} 64...
Rd7 {[%clk 0:00:16.9]} 65. Ke5 {[%clk 0:00:34.7]} 65... Ra7 {[%clk 0:00:16.2]}
66. f4 {[%clk 0:00:24.6]} 66... Re7+ {[%clk 0:00:17.1]} 67. Kf5 {[%clk
0:00:18.7]} 67... Ra7 {[%clk 0:00:17.6]} 68. g5 {[%clk 0:00:19.6]} 68... hxg5
{[%clk 0:00:17.6]} 69. fxg5 {[%clk 0:00:21.1]} 69... Rb7 {[%clk 0:00:07.6]} 70.
g6+ {[%clk 0:00:17.3]} 70... Ke7 {[%clk 0:00:08]} 71. Kg5 {[%clk 0:00:15.8]}
71... Rd7 {[%clk 0:00:06.5]} 72. Rf5 {[%clk 0:00:16.8]} 72... Ke8 {[%clk
0:00:03.7]} 73. h6 {[%clk 0:00:18]} 73... gxh6+ {[%clk 0:00:04.7]} 74. Kxh6
{[%clk 0:00:19.6]} 74... Ra7 {[%clk 0:00:04.9]} 75. g7 {[%clk 0:00:19]} 75...
Ra6+ {[%clk 0:00:06]} 76. Kh7 {[%clk 0:00:19.9]} 76... Ra7 {[%clk 0:00:06.7]}
77. Kh8 {[%clk 0:00:20.9]} 77... Ke7 {[%clk 0:00:05.9]} 78. g8=Q {[%clk
0:00:20.6]} 1-0

[Event "*** MasterClass Titled Tuesday Blitz"]
[Site "Chess.com"]
[Date "2017.11.07"]
[Round "1"]
[White "ChristopherYoo"]
[Black "yosephtaher"]
[Result "1/2-1/2"]
[WhiteElo "2265"]
[BlackElo "2531"]
[TimeControl "180+2"]
[EndTime "14:15:34 PST"]
[Termination "Game drawn by stalemate"]

1. e4 {[%clk 0:03:01.9]} 1... c5 {[%clk 0:02:59.1]} 2. Nf3 {[%clk 0:03:01.2]}
2... Nc6 {[%clk 0:02:59.4]} 3. d4 {[%clk 0:03:01.1]} 3... cxd4 {[%clk
0:03:00.6]} 4. Nxd4 {[%clk 0:02:59.6]} 4... e6 {[%clk 0:03:01.9]} 5. Nc3 {[%clk
0:02:57.3]} 5... Qc7 {[%clk 0:03:01.9]} 6. Be3 {[%clk 0:02:57.1]} 6... Nf6
{[%clk 0:03:01.3]} 7. Qd2 {[%clk 0:02:50.2]} 7... Bb4 {[%clk 0:02:59.7]} 8. f3
{[%clk 0:02:44.2]} 8... d5 {[%clk 0:03:00.1]} 9. Ndb5 {[%clk 0:02:22]} 9... Qe7
{[%clk 0:02:54.3]} 10. a3 {[%clk 0:02:17.1]} 10... Bxc3 {[%clk 0:02:39.4]} 11.
Nxc3 {[%clk 0:02:16.9]} 11... dxe4 {[%clk 0:02:37.6]} 12. fxe4 {[%clk
0:02:05.2]} 12... O-O {[%clk 0:02:37]} 13. O-O-O {[%clk 0:02:04.3]} 13... b6
{[%clk 0:02:35.8]} 14. Be2 {[%clk 0:01:36.5]} 14... Bb7 {[%clk 0:02:27.3]} 15.
Bg5 {[%clk 0:01:35.7]} 15... Rad8 {[%clk 0:01:47.1]} 16. Qe3 {[%clk 0:01:17.3]}
16... Qc5 {[%clk 0:01:32.6]} 17. Rhf1 {[%clk 0:01:00.2]} 17... Qxe3+ {[%clk
0:01:31.2]} 18. Bxe3 {[%clk 0:01:00.6]} 18... Ne5 {[%clk 0:01:19.2]} 19. Bd4
{[%clk 0:00:56.1]} 19... Ned7 {[%clk 0:01:12.3]} 20. Bf3 {[%clk 0:00:51.8]}
20... e5 {[%clk 0:01:13.1]} 21. Be3 {[%clk 0:00:52.1]} 21... Rfe8 {[%clk
0:01:13.9]} 22. Rd2 {[%clk 0:00:48.9]} 22... Nc5 {[%clk 0:01:07.2]} 23. Bxc5
{[%clk 0:00:46.2]} 23... bxc5 {[%clk 0:01:06.9]} 24. Rfd1 {[%clk 0:00:47.1]}
24... Rd4 {[%clk 0:01:06.9]} 25. Nb5 {[%clk 0:00:37.9]} 25... Rxd2 {[%clk
0:01:05.6]} 26. Rxd2 {[%clk 0:00:38.2]} 26... g5 {[%clk 0:00:44]} 27. Nd6 {[%clk
0:00:36.5]} 27... Re7 {[%clk 0:00:43.5]} 28. h3 {[%clk 0:00:26.2]} 28... h5
{[%clk 0:00:40.6]} 29. g4 {[%clk 0:00:21.5]} 29... hxg4 {[%clk 0:00:37.4]} 30.
hxg4 {[%clk 0:00:22.8]} 30... Bc6 {[%clk 0:00:37.4]} 31. Nf5 {[%clk 0:00:22.9]}
31... Rd7 {[%clk 0:00:36.5]} 32. Re2 {[%clk 0:00:22.5]} 32... Nh7 {[%clk
0:00:29.4]} 33. Re3 {[%clk 0:00:22.7]} 33... Nf8 {[%clk 0:00:28.9]} 34. Rb3
{[%clk 0:00:14.5]} 34... Ne6 {[%clk 0:00:28.2]} 35. Rb8+ {[%clk 0:00:15.2]}
35... Kh7 {[%clk 0:00:28.6]} 36. b4 {[%clk 0:00:13.4]} 36... cxb4 {[%clk
0:00:24.7]} 37. axb4 {[%clk 0:00:15.3]} 37... Bb7 {[%clk 0:00:18.3]} 38. Nd6
{[%clk 0:00:14]} 38... Bc6 {[%clk 0:00:15.5]} 39. Nc4 {[%clk 0:00:14.6]} 39...
f6 {[%clk 0:00:14.7]} 40. b5 {[%clk 0:00:15.4]} 40... Bb7 {[%clk 0:00:14.4]} 41.
Na5 {[%clk 0:00:15.8]} 41... Nc5 {[%clk 0:00:15.6]} 42. Nc6 {[%clk 0:00:10.6]}
42... Bxc6 {[%clk 0:00:12.4]} 43. bxc6 {[%clk 0:00:10.3]} 43... Rc7 {[%clk
0:00:13.8]} 44. Ra8 {[%clk 0:00:11]} 44... a6 {[%clk 0:00:13.9]} 45. Kb2 {[%clk
0:00:05.5]} 45... Rxc6 {[%clk 0:00:15.2]} 46. Ra7+ {[%clk 0:00:06.2]} 46... Kg6
{[%clk 0:00:16]} 47. Be2 {[%clk 0:00:07.4]} 47... Rb6+ {[%clk 0:00:13.3]} 48.
Kc1 {[%clk 0:00:07.6]} 48... Rc6 {[%clk 0:00:14]} 49. Bc4 {[%clk 0:00:07.6]}
49... Rb6 {[%clk 0:00:13.6]} 50. Bf7+ {[%clk 0:00:08.3]} 50... Kh6 {[%clk
0:00:15]} 51. Bd5 {[%clk 0:00:09]} 51... Kg6 {[%clk 0:00:15.7]} 52. Rc7 {[%clk
0:00:09.5]} 52... Na4 {[%clk 0:00:12.5]} 53. Rc8 {[%clk 0:00:09]} 53... Rd6
{[%clk 0:00:09.9]} 54. Rg8+ {[%clk 0:00:09.6]} 54... Kh7 {[%clk 0:00:10.4]} 55.
Rc8 {[%clk 0:00:10.3]} 55... Nb6 {[%clk 0:00:10.3]} 56. Rc7+ {[%clk 0:00:11.1]}
56... Kg6 {[%clk 0:00:11.5]} 57. Bf7+ {[%clk 0:00:11.9]} 57... Kg7 {[%clk
0:00:12.7]} 58. Bc4+ {[%clk 0:00:10.6]} 58... Kf8 {[%clk 0:00:13.4]} 59. Bxa6
{[%clk 0:00:11.1]} 59... Rd4 {[%clk 0:00:13.3]} 60. Bb7 {[%clk 0:00:11.6]} 60...
Ke8 {[%clk 0:00:08.8]} 61. Rc6 {[%clk 0:00:10.3]} 61... Nd7 {[%clk 0:00:09.3]}
62. Rc8+ {[%clk 0:00:10.7]} 62... Ke7 {[%clk 0:00:10.8]} 63. Bd5 {[%clk
0:00:11.2]} 63... Kd6 {[%clk 0:00:10.9]} 64. Rc6+ {[%clk 0:00:11.8]} 64... Ke7
{[%clk 0:00:12.3]} 65. Re6+ {[%clk 0:00:12.6]} 65... Kd8 {[%clk 0:00:13.4]} 66.
Rc6 {[%clk 0:00:13.8]} 66... Ra4 {[%clk 0:00:11.8]} 67. Be6 {[%clk 0:00:14]}
67... Ke7 {[%clk 0:00:09.2]} 68. Bxd7 {[%clk 0:00:14.7]} 68... Kxd7 {[%clk
0:00:09.9]} 69. Rxf6 {[%clk 0:00:15.7]} 69... Rxe4 {[%clk 0:00:11.4]} 70. Rf5
{[%clk 0:00:16.8]} 70... Rxg4 {[%clk 0:00:11.4]} 71. Rxe5 {[%clk 0:00:18]} 71...
Kd6 {[%clk 0:00:12.8]} 72. Re8 {[%clk 0:00:19]} 72... Rg2 {[%clk 0:00:13.5]} 73.
Kd1 {[%clk 0:00:18.7]} 73... Kd5 {[%clk 0:00:14.2]} 74. Ke1 {[%clk 0:00:19.7]}
74... Rxc2 {[%clk 0:00:14]} 75. Re3 {[%clk 0:00:20.6]} 75... Kd4 {[%clk
0:00:11.1]} 76. Rg3 {[%clk 0:00:20.7]} 76... Rc5 {[%clk 0:00:12.6]} 77. Kf2
{[%clk 0:00:21.5]} 77... Ke4 {[%clk 0:00:14.1]} 78. Ra3 {[%clk 0:00:22.4]} 78...
g4 {[%clk 0:00:14.3]} 79. Kg2 {[%clk 0:00:22.5]} 79... Kf4 {[%clk 0:00:14]} 80.
Kg1 {[%clk 0:00:23.6]} 80... g3 {[%clk 0:00:14.7]} 81. Ra8 {[%clk 0:00:23.9]}
81... Rf5 {[%clk 0:00:14.6]} 82. Ra4+ {[%clk 0:00:23.1]} 82... Kf3 {[%clk
0:00:13.9]} 83. Ra3+ {[%clk 0:00:24.2]} 83... Kg4 {[%clk 0:00:15.3]} 84. Ra8
{[%clk 0:00:25.2]} 84... Rh5 {[%clk 0:00:10.5]} 85. Rg8+ {[%clk 0:00:25.2]}
85... Kh3 {[%clk 0:00:11.9]} 86. Rf8 {[%clk 0:00:20.1]} 86... Rh4 {[%clk
0:00:12]} 87. Rf1 {[%clk 0:00:20.9]} 87... Re4 {[%clk 0:00:11.9]} 88. Rd1 {[%clk
0:00:21.5]} 88... Re2 {[%clk 0:00:12.8]} 89. Rc1 {[%clk 0:00:22.6]} 89... Kg4
{[%clk 0:00:10.1]} 90. Rb1 {[%clk 0:00:23]} 90... Re3 {[%clk 0:00:05.6]} 91. Ra1
{[%clk 0:00:23.3]} 91... Kf3 {[%clk 0:00:06.9]} 92. Rf1+ {[%clk 0:00:24.1]}
92... Kg4 {[%clk 0:00:07]} 93. Rb1 {[%clk 0:00:24.8]} 93... Kh3 {[%clk 0:00:08]}
94. Rc1 {[%clk 0:00:25.9]} 94... g2 {[%clk 0:00:09.4]} 95. Rb1 {[%clk
0:00:25.2]} 95... Kg3 {[%clk 0:00:09.7]} 96. Rb3 {[%clk 0:00:25.1]} 96... Rxb3
{[%clk 0:00:09.8]} 1/2-1/2

[Event "*** MasterClass Titled Tuesday Blitz"]
[Site "Chess.com"]
[Date "2017.11.07"]
[Round "2"]
[White "GMKrikor"]
[Black "Mbneu"]
[Result "1-0"]
[WhiteElo "2610"]
[BlackElo "2307"]
[TimeControl "180+2"]
[EndTime "14:26:07 PST"]
[Termination "GMKrikor won by resignation"]

1. e4 {[%clk 0:03:01.9]} 1... e5 {[%clk 0:03:00.8]} 2. Nf3 {[%clk 0:03:01.8]}
2... Nc6 {[%clk 0:03:02.4]} 3. Bb5 {[%clk 0:03:02.5]} 3... f5 {[%clk 0:03:03.8]}
4. Bxc6 {[%clk 0:02:49.6]} 4... dxc6 {[%clk 0:03:03.5]} 5. Nc3 {[%clk 0:02:51]}
5... Nf6 {[%clk 0:02:58.5]} 6. Qe2 {[%clk 0:02:51.1]} 6... Bd6 {[%clk
0:02:45.5]} 7. d3 {[%clk 0:02:46.6]} 7... O-O {[%clk 0:02:43.8]} 8. Bg5 {[%clk
0:02:18.3]} 8... Qe8 {[%clk 0:02:41.7]} 9. exf5 {[%clk 0:02:14.9]} 9... Bxf5
{[%clk 0:02:41.4]} 10. O-O-O {[%clk 0:02:12.2]} 10... Nd5 {[%clk 0:02:33.8]} 11.
Ne4 {[%clk 0:02:08.6]} 11... Bg4 {[%clk 0:02:29.9]} 12. Rhg1 {[%clk 0:02:04.1]}
12... Qf7 {[%clk 0:02:20.6]} 13. Kb1 {[%clk 0:01:40.5]} 13... Bxf3 {[%clk
0:02:15.8]} 14. gxf3 {[%clk 0:01:41.9]} 14... Qxf3 {[%clk 0:02:17]} 15. Qd2
{[%clk 0:01:40.9]} 15... Bb4 {[%clk 0:02:10.3]} 16. c3 {[%clk 0:01:38.8]} 16...
Bd6 {[%clk 0:02:00.6]} 17. Bh6 {[%clk 0:01:32]} 17... Rf7 {[%clk 0:02:00.8]} 18.
Ng5 {[%clk 0:01:27.5]} 1-0

[Event "*** MasterClass Titled Tuesday Blitz"]
[Site "Chess.com"]
[Date "2017.11.07"]
[Round "2"]
[White "saikrishnaReturns"]
[Black "AllStarShark"]
[Result "1-0"]
[WhiteElo "2495"]
[BlackElo "2296"]
[TimeControl "180+2"]
[EndTime "14:26:32 PST"]
[Termination "saikrishnaReturns won by resignation"]

1. Nc3 {[%clk 0:03:01.9]} 1... c5 {[%clk 0:02:55.4]} 2. e4 {[%clk 0:03:02.9]}
2... g6 {[%clk 0:02:55.3]} 3. Nge2 {[%clk 0:03:03.4]} 3... Bg7 {[%clk
0:02:56.3]} 4. d4 {[%clk 0:03:04.1]} 4... cxd4 {[%clk 0:02:57.6]} 5. Nxd4 {[%clk
0:03:05.8]} 5... Nc6 {[%clk 0:02:58.8]} 6. Be3 {[%clk 0:03:07.2]} 6... Nf6
{[%clk 0:02:58.9]} 7. Bc4 {[%clk 0:03:07.8]} 7... Qa5 {[%clk 0:02:57.5]} 8. Bb3
{[%clk 0:03:01.7]} 8... Nxe4 {[%clk 0:02:51.1]} 9. O-O {[%clk 0:03:00.3]} 9...
Nxc3 {[%clk 0:02:48]} 10. bxc3 {[%clk 0:02:37.9]} 10... Qxc3 {[%clk 0:02:45.6]}
11. Nb5 {[%clk 0:02:38.5]} 11... Qxa1 {[%clk 0:02:33.9]} 12. Qd5 {[%clk
0:02:38.8]} 12... Qf6 {[%clk 0:02:24.4]} 13. Nc7+ {[%clk 0:02:37.6]} 13... Kd8
{[%clk 0:02:25.4]} 14. Nxa8 {[%clk 0:02:33]} 14... b6 {[%clk 0:02:22.4]} 15. Rd1
{[%clk 0:02:30.4]} 15... Rf8 {[%clk 0:01:50.3]} 16. Bg5 {[%clk 0:02:24.3]} 16...
Qe5 {[%clk 0:01:44.1]} 17. Qxc6 {[%clk 0:02:21.7]} 17... Qe1+ {[%clk 0:01:05.2]}
18. Rxe1 {[%clk 0:02:21.8]} 18... dxc6 {[%clk 0:01:06.5]} 19. Bxe7+ {[%clk
0:02:22.6]} 19... Kd7 {[%clk 0:01:04.7]} 20. Bxf8 {[%clk 0:02:23.7]} 20... Bxf8
{[%clk 0:01:06.2]} 21. Bxf7 {[%clk 0:02:24.8]} 21... Bb7 {[%clk 0:01:05.9]} 22.
Bg8 {[%clk 0:02:08.9]} 22... h6 {[%clk 0:00:57.5]} 23. Bf7 {[%clk 0:01:57.7]}
23... Bxa8 {[%clk 0:00:49.5]} 24. Re8 {[%clk 0:01:56.6]} 1-0

[Event "*** MasterClass Titled Tuesday Blitz"]
[Site "Chess.com"]
[Date "2017.11.07"]
[Round "2"]
[White "BilodeauA"]
[Black "VitaliyBernadskiy"]
[Result "1-0"]
[WhiteElo "2810"]
[BlackElo "2548"]
[TimeControl "180+2"]
[EndTime "14:27:07 PST"]
[Termination "BilodeauA won by resignation"]

1. e4 {[%clk 0:03:01.9]} 1... e6 {[%clk 0:03:01.1]} 2. d4 {[%clk 0:03:02.1]}
2... d5 {[%clk 0:03:02.3]} 3. Nd2 {[%clk 0:03:03.7]} 3... Nc6 {[%clk 0:03:02.4]}
4. Ngf3 {[%clk 0:03:02]} 4... Nf6 {[%clk 0:03:03.5]} 5. e5 {[%clk 0:03:03.1]}
5... Nd7 {[%clk 0:03:04.5]} 6. c3 {[%clk 0:03:04.6]} 6... f6 {[%clk 0:03:05.2]}
7. Bb5 {[%clk 0:03:06.1]} 7... fxe5 {[%clk 0:03:05]} 8. dxe5 {[%clk 0:03:08]}
8... Be7 {[%clk 0:03:05.9]} 9. O-O {[%clk 0:03:08.2]} 9... O-O {[%clk
0:03:06.5]} 10. Re1 {[%clk 0:03:09.5]} 10... Nc5 {[%clk 0:02:58.1]} 11. Nf1
{[%clk 0:03:00.9]} 11... Ne4 {[%clk 0:02:57.8]} 12. Ng3 {[%clk 0:02:59.4]} 12...
Nxg3 {[%clk 0:02:57.5]} 13. hxg3 {[%clk 0:03:01.1]} 13... Bd7 {[%clk 0:02:58.7]}
14. Bd3 {[%clk 0:02:54.4]} 14... Qe8 {[%clk 0:02:45.7]} 15. g4 {[%clk 0:02:51]}
15... Qf7 {[%clk 0:02:45]} 16. Qc2 {[%clk 0:02:49.7]} 16... g6 {[%clk 0:02:37]}
17. Bh6 {[%clk 0:02:46.3]} 17... Rfe8 {[%clk 0:02:37.6]} 18. Ng5 {[%clk
0:02:44.3]} 18... Bxg5 {[%clk 0:02:38.4]} 19. Bxg5 {[%clk 0:02:46.1]} 19... Nb8
{[%clk 0:02:08.9]} 20. Re3 {[%clk 0:02:45]} 20... Bc6 {[%clk 0:02:07.5]} 21. Rf3
{[%clk 0:02:42.8]} 21... Qd7 {[%clk 0:01:57.1]} 22. Rf6 {[%clk 0:01:46.7]} 22...
d4 {[%clk 0:01:47.6]} 23. c4 {[%clk 0:01:44.5]} 23... Na6 {[%clk 0:01:47.3]} 24.
Bxg6 {[%clk 0:01:30.9]} 24... Nb4 {[%clk 0:01:47.8]} 25. Qd2 {[%clk 0:01:17.6]}
25... hxg6 {[%clk 0:01:39.5]} 26. Rxg6+ {[%clk 0:01:18.1]} 26... Kh7 {[%clk
0:01:40.9]} 27. Rh6+ {[%clk 0:01:19]} 27... Kg8 {[%clk 0:01:39.4]} 28. Bf6
{[%clk 0:01:19]} 1-0